Workbook

Sheet Лист1
A1: Показатель | B1: Новомиколаївський елеватор | C1: Новомиколаївський елеватор | D1: Новомиколаївський елеватор | E1: Новомиколаївський елеватор | F1: Новомиколаївський елеватор | G1: Новомиколаївський елеватор | H1: Новомиколаївський елеватор | I1: Новомиколаївський елеватор | J1: Новомиколаївський елеватор | K1: Новомиколаївський елеватор | L1: Новомиколаївський елеватор | M1: Новомиколаївський елеватор
B2: =MATCH(B1,[1]Текущая!$B$3:$B$35,0) -> 1 | C2: =MATCH(C1,[1]Текущая!$B$3:$B$35,0) -> 1 | D2: =MATCH(D1,[1]Текущая!$B$3:$B$35,0) -> 1 | E2: =MATCH(E1,[1]Текущая!$B$3:$B$35,0) -> 1 | F2: =MATCH(F1,[1]Текущая!$B$3:$B$35,0) -> 1 | G2: =MATCH(G1,[1]Текущая!$B$3:$B$35,0) -> 1 | H2: =MATCH(H1,[1]Текущая!$B$3:$B$35,0) -> 1 | I2: =MATCH(I1,[1]Текущая!$B$3:$B$35,0) -> 1 | J2: =MATCH(J1,[1]Текущая!$B$3:$B$35,0) -> 1 | K2: =MATCH(K1,[1]Текущая!$B$3:$B$35,0) -> 1 | L2: =MATCH(L1,[1]Текущая!$B$3:$B$35,0) -> 1 | M2: =MATCH(M1,[1]Текущая!$B$3:$B$35,0) -> 1
B3: 1 | C3: 2 | D3: 3 | E3: 4 | F3: 5 | G3: 6 | H3: 7 | I3: 8 | J3: 9 | K3: 10 | L3: 11 | M3: 12
B4: Пшениця фураж | C4: Пшениця фураж | D4: Пшениця фураж | E4: Пшениця фураж | F4: Пшениця (3кл.) | G4: Пшениця (3кл.) | H4: Пшениця (3кл.) | I4: Пшениця (3кл.) | J4: Пшениця (2кл.) | K4: Пшениця (2кл.) | L4: Пшениця (2кл.) | M4: Пшениця (2кл.)
B5: Одеса | C5: Южний | D5: Чорноморск | E5: Миколаїв | F5: Одеса | G5: Южний | H5: Чорноморск | I5: Миколаїв | J5: Одеса | K5: Южний | L5: Чорноморск | M5: Миколаїв
A6: Завантажено в вагон, т | B6: =VLOOKUP(B4,[2]System2!$C$1:$D$8,2,0) -> 67.5 | C6: =VLOOKUP(C4,[2]System2!$C$1:$D$8,2,0) -> 67.5 | D6: =VLOOKUP(D4,[2]System2!$C$1:$D$8,2,0) -> 67.5 | E6: =VLOOKUP(E4,[2]System2!$C$1:$D$8,2,0) -> 67.5 | F6: =VLOOKUP(F4,[2]System2!$C$1:$D$8,2,0) -> 67.5 | G6: =VLOOKUP(G4,[2]System2!$C$1:$D$8,2,0) -> 67.5 | H6: =VLOOKUP(H4,[2]System2!$C$1:$D$8,2,0) -> 67.5 | I6: =VLOOKUP(I4,[2]System2!$C$1:$D$8,2,0) -> 67.5 | J6: =VLOOKUP(J4,[2]System2!$C$1:$D$8,2,0) -> 67.5 | K6: =VLOOKUP(K4,[2]System2!$C$1:$D$8,2,0) -> 67.5 | L6: =VLOOKUP(L4,[2]System2!$C$1:$D$8,2,0) -> 67.5 | M6: =VLOOKUP(M4,[2]System2!$C$1:$D$8,2,0) -> 67.5
A7: Ціна закупівлі | B7: 30493.26985 | C7: 30470.21895 | D7: 30500.34066 | E7: 30627.93895 | F7: 30629.10951 | G7: 30606.69795 | H7: 30637.27034 | I7: 30762.45443 | J7: 30407.52384 | K7: 30730.27116 | L7: 30760.8571 | M7: 30888.10636
A8: Складска квитанція | B8: =(INDEX([3]Текущая!$C$4:$P$36,MATCH(B1,[3]Текущая!$B$4:$B$36,0),13))/[2]Main!$C$2 -> 0 | C8: =(INDEX([3]Текущая!$C$4:$P$36,MATCH(C1,[3]Текущая!$B$4:$B$36,0),13))/[2]Main!$C$2 -> 0 | D8: =(INDEX([3]Текущая!$C$4:$P$36,MATCH(D1,[3]Текущая!$B$4:$B$36,0),13))/[2]Main!$C$2 -> 0 | E8: =(INDEX([3]Текущая!$C$4:$P$36,MATCH(E1,[3]Текущая!$B$4:$B$36,0),13))/[2]Main!$C$2 -> 0 | F8: =(INDEX([3]Текущая!$C$4:$P$36,MATCH(F1,[3]Текущая!$B$4:$B$36,0),13))/[2]Main!$C$2 -> 0 | G8: =(INDEX([3]Текущая!$C$4:$P$36,MATCH(G1,[3]Текущая!$B$4:$B$36,0),13))/[2]Main!$C$2 -> 0 | H8: =(INDEX([3]Текущая!$C$4:$P$36,MATCH(H1,[3]Текущая!$B$4:$B$36,0),13))/[2]Main!$C$2 -> 0 | I8: =(INDEX([3]Текущая!$C$4:$P$36,MATCH(I1,[3]Текущая!$B$4:$B$36,0),13))/[2]Main!$C$2 -> 0 | J8: =(INDEX([3]Текущая!$C$4:$P$36,MATCH(J1,[3]Текущая!$B$4:$B$36,0),13))/[2]Main!$C$2 -> 0 | K8: =(INDEX([3]Текущая!$C$4:$P$36,MATCH(K1,[3]Текущая!$B$4:$B$36,0),13))/[2]Main!$C$2 -> 0 | L8: =(INDEX([3]Текущая!$C$4:$P$36,MATCH(L1,[3]Текущая!$B$4:$B$36,0),13))/[2]Main!$C$2 -> 0 | M8: =(INDEX([3]Текущая!$C$4:$P$36,MATCH(M1,[3]Текущая!$B$4:$B$36,0),13))/[2]Main!$C$2 -> 0
A9: Зберігання на СЗС (30 днів) | B9: =(INDEX([3]Текущая!$C$4:$P$36,MATCH(B1,[3]Текущая!$B$4:$B$36,0),4)*30) -> 0 | C9: =(INDEX([3]Текущая!$C$4:$P$36,MATCH(C1,[3]Текущая!$B$4:$B$36,0),4)*30) -> 0 | D9: =(INDEX([3]Текущая!$C$4:$P$36,MATCH(D1,[3]Текущая!$B$4:$B$36,0),4)*30) -> 0 | E9: =(INDEX([3]Текущая!$C$4:$P$36,MATCH(E1,[3]Текущая!$B$4:$B$36,0),4)*30) -> 0 | F9: =(INDEX([3]Текущая!$C$4:$P$36,MATCH(F1,[3]Текущая!$B$4:$B$36,0),4)*30) -> 0 | G9: =(INDEX([3]Текущая!$C$4:$P$36,MATCH(G1,[3]Текущая!$B$4:$B$36,0),4)*30) -> 0 | H9: =(INDEX([3]Текущая!$C$4:$P$36,MATCH(H1,[3]Текущая!$B$4:$B$36,0),4)*30) -> 0 | I9: =(INDEX([3]Текущая!$C$4:$P$36,MATCH(I1,[3]Текущая!$B$4:$B$36,0),4)*30) -> 0 | J9: =(INDEX([3]Текущая!$C$4:$P$36,MATCH(J1,[3]Текущая!$B$4:$B$36,0),4)*30) -> 0 | K9: =(INDEX([3]Текущая!$C$4:$P$36,MATCH(K1,[3]Текущая!$B$4:$B$36,0),4)*30) -> 0 | L9: =(INDEX([3]Текущая!$C$4:$P$36,MATCH(L1,[3]Текущая!$B$4:$B$36,0),4)*30) -> 0 | M9: =(INDEX([3]Текущая!$C$4:$P$36,MATCH(M1,[3]Текущая!$B$4:$B$36,0),4)*30) -> 0
A10: Вагові втрати на СЗС (0,5%) | B10: =(B7+B8+B9)*0.5% -> 152.4663493 | C10: 152.3510948 | D10: 152.5017033 | E10: 153.1396948 | F10: 153.1455475 | G10: 153.0334897 | H10: 153.1863517 | I10: 153.8122721 | J10: 152.0376192 | K10: 153.6513558 | L10: 153.8042855 | M10: 154.4405318
A11: Відвантажування з СЗС | B11: =(INDEX([3]Текущая!$C$4:$P$36,MATCH(B1,[3]Текущая!$B$4:$B$36,0),6)*1) -> 0 | C11: =(INDEX([3]Текущая!$C$4:$P$36,MATCH(C1,[3]Текущая!$B$4:$B$36,0),6)*1) -> 0 | D11: =(INDEX([3]Текущая!$C$4:$P$36,MATCH(D1,[3]Текущая!$B$4:$B$36,0),6)*1) -> 0 | E11: =(INDEX([3]Текущая!$C$4:$P$36,MATCH(E1,[3]Текущая!$B$4:$B$36,0),6)*1) -> 0 | F11: =(INDEX([3]Текущая!$C$4:$P$36,MATCH(F1,[3]Текущая!$B$4:$B$36,0),6)*1) -> 0 | G11: =(INDEX([3]Текущая!$C$4:$P$36,MATCH(G1,[3]Текущая!$B$4:$B$36,0),6)*1) -> 0 | H11: =(INDEX([3]Текущая!$C$4:$P$36,MATCH(H1,[3]Текущая!$B$4:$B$36,0),6)*1) -> 0 | I11: =(INDEX([3]Текущая!$C$4:$P$36,MATCH(I1,[3]Текущая!$B$4:$B$36,0),6)*1) -> 0 | J11: =(INDEX([3]Текущая!$C$4:$P$36,MATCH(J1,[3]Текущая!$B$4:$B$36,0),6)*1) -> 0 | K11: =(INDEX([3]Текущая!$C$4:$P$36,MATCH(K1,[3]Текущая!$B$4:$B$36,0),6)*1) -> 0 | L11: =(INDEX([3]Текущая!$C$4:$P$36,MATCH(L1,[3]Текущая!$B$4:$B$36,0),6)*1) -> 0 | M11: =(INDEX([3]Текущая!$C$4:$P$36,MATCH(M1,[3]Текущая!$B$4:$B$36,0),6)*1) -> 0
A12: Підготовка вагона на СЗС | B12: =(INDEX([3]Текущая!$C$4:$P$36,MATCH(B1,[3]Текущая!$B$4:$B$36,0),7)/B6) -> 0 | C12: =(INDEX([3]Текущая!$C$4:$P$36,MATCH(C1,[3]Текущая!$B$4:$B$36,0),7)/C6) -> 0 | D12: =(INDEX([3]Текущая!$C$4:$P$36,MATCH(D1,[3]Текущая!$B$4:$B$36,0),7)/D6) -> 0 | E12: =(INDEX([3]Текущая!$C$4:$P$36,MATCH(E1,[3]Текущая!$B$4:$B$36,0),7)/E6) -> 0 | F12: =(INDEX([3]Текущая!$C$4:$P$36,MATCH(F1,[3]Текущая!$B$4:$B$36,0),7)/F6) -> 0 | G12: =(INDEX([3]Текущая!$C$4:$P$36,MATCH(G1,[3]Текущая!$B$4:$B$36,0),7)/G6) -> 0 | H12: =(INDEX([3]Текущая!$C$4:$P$36,MATCH(H1,[3]Текущая!$B$4:$B$36,0),7)/H6) -> 0 | I12: =(INDEX([3]Текущая!$C$4:$P$36,MATCH(I1,[3]Текущая!$B$4:$B$36,0),7)/I6) -> 0 | J12: =(INDEX([3]Текущая!$C$4:$P$36,MATCH(J1,[3]Текущая!$B$4:$B$36,0),7)/J6) -> 0 | K12: =(INDEX([3]Текущая!$C$4:$P$36,MATCH(K1,[3]Текущая!$B$4:$B$36,0),7)/K6) -> 0 | L12: =(INDEX([3]Текущая!$C$4:$P$36,MATCH(L1,[3]Текущая!$B$4:$B$36,0),7)/L6) -> 0 | M12: =(INDEX([3]Текущая!$C$4:$P$36,MATCH(M1,[3]Текущая!$B$4:$B$36,0),7)/M6) -> 0
A13: Використання тепловоза СЗС | B13: =(INDEX([3]Текущая!$C$4:$P$36,MATCH(B1,[3]Текущая!$B$4:$B$36,0),10)/B6) -> 0 | C13: =(INDEX([3]Текущая!$C$4:$P$36,MATCH(C1,[3]Текущая!$B$4:$B$36,0),10)/C6) -> 0 | D13: =(INDEX([3]Текущая!$C$4:$P$36,MATCH(D1,[3]Текущая!$B$4:$B$36,0),10)/D6) -> 0 | E13: =(INDEX([3]Текущая!$C$4:$P$36,MATCH(E1,[3]Текущая!$B$4:$B$36,0),10)/E6) -> 0 | F13: =(INDEX([3]Текущая!$C$4:$P$36,MATCH(F1,[3]Текущая!$B$4:$B$36,0),10)/F6) -> 0 | G13: =(INDEX([3]Текущая!$C$4:$P$36,MATCH(G1,[3]Текущая!$B$4:$B$36,0),10)/G6) -> 0 | H13: =(INDEX([3]Текущая!$C$4:$P$36,MATCH(H1,[3]Текущая!$B$4:$B$36,0),10)/H6) -> 0 | I13: =(INDEX([3]Текущая!$C$4:$P$36,MATCH(I1,[3]Текущая!$B$4:$B$36,0),10)/I6) -> 0 | J13: =(INDEX([3]Текущая!$C$4:$P$36,MATCH(J1,[3]Текущая!$B$4:$B$36,0),10)/J6) -> 0 | K13: =(INDEX([3]Текущая!$C$4:$P$36,MATCH(K1,[3]Текущая!$B$4:$B$36,0),10)/K6) -> 0 | L13: =(INDEX([3]Текущая!$C$4:$P$36,MATCH(L1,[3]Текущая!$B$4:$B$36,0),10)/L6) -> 0 | M13: =(INDEX([3]Текущая!$C$4:$P$36,MATCH(M1,[3]Текущая!$B$4:$B$36,0),10)/M6) -> 0
A14: Використання під'їздної колії СЗС | B14: =(INDEX([3]Текущая!$C$4:$P$36,MATCH(B1,[3]Текущая!$B$4:$B$36,0),11)/B6) -> 0 | C14: =(INDEX([3]Текущая!$C$4:$P$36,MATCH(C1,[3]Текущая!$B$4:$B$36,0),11)/C6) -> 0 | D14: =(INDEX([3]Текущая!$C$4:$P$36,MATCH(D1,[3]Текущая!$B$4:$B$36,0),11)/D6) -> 0 | E14: =(INDEX([3]Текущая!$C$4:$P$36,MATCH(E1,[3]Текущая!$B$4:$B$36,0),11)/E6) -> 0 | F14: =(INDEX([3]Текущая!$C$4:$P$36,MATCH(F1,[3]Текущая!$B$4:$B$36,0),11)/F6) -> 0 | G14: =(INDEX([3]Текущая!$C$4:$P$36,MATCH(G1,[3]Текущая!$B$4:$B$36,0),11)/G6) -> 0 | H14: =(INDEX([3]Текущая!$C$4:$P$36,MATCH(H1,[3]Текущая!$B$4:$B$36,0),11)/H6) -> 0 | I14: =(INDEX([3]Текущая!$C$4:$P$36,MATCH(I1,[3]Текущая!$B$4:$B$36,0),11)/I6) -> 0 | J14: =(INDEX([3]Текущая!$C$4:$P$36,MATCH(J1,[3]Текущая!$B$4:$B$36,0),11)/J6) -> 0 | K14: =(INDEX([3]Текущая!$C$4:$P$36,MATCH(K1,[3]Текущая!$B$4:$B$36,0),11)/K6) -> 0 | L14: =(INDEX([3]Текущая!$C$4:$P$36,MATCH(L1,[3]Текущая!$B$4:$B$36,0),11)/L6) -> 0 | M14: =(INDEX([3]Текущая!$C$4:$P$36,MATCH(M1,[3]Текущая!$B$4:$B$36,0),11)/M6) -> 0
A15: Маневрові работи на СЗС | B15: =(INDEX([3]Текущая!$C$4:$P$36,MATCH(B1,[3]Текущая!$B$4:$B$36,0),9)/B6) -> 0 | C15: =(INDEX([3]Текущая!$C$4:$P$36,MATCH(C1,[3]Текущая!$B$4:$B$36,0),9)/C6) -> 0 | D15: =(INDEX([3]Текущая!$C$4:$P$36,MATCH(D1,[3]Текущая!$B$4:$B$36,0),9)/D6) -> 0 | E15: =(INDEX([3]Текущая!$C$4:$P$36,MATCH(E1,[3]Текущая!$B$4:$B$36,0),9)/E6) -> 0 | F15: =(INDEX([3]Текущая!$C$4:$P$36,MATCH(F1,[3]Текущая!$B$4:$B$36,0),9)/F6) -> 0 | G15: =(INDEX([3]Текущая!$C$4:$P$36,MATCH(G1,[3]Текущая!$B$4:$B$36,0),9)/G6) -> 0 | H15: =(INDEX([3]Текущая!$C$4:$P$36,MATCH(H1,[3]Текущая!$B$4:$B$36,0),9)/H6) -> 0 | I15: =(INDEX([3]Текущая!$C$4:$P$36,MATCH(I1,[3]Текущая!$B$4:$B$36,0),9)/I6) -> 0 | J15: =(INDEX([3]Текущая!$C$4:$P$36,MATCH(J1,[3]Текущая!$B$4:$B$36,0),9)/J6) -> 0 | K15: =(INDEX([3]Текущая!$C$4:$P$36,MATCH(K1,[3]Текущая!$B$4:$B$36,0),9)/K6) -> 0 | L15: =(INDEX([3]Текущая!$C$4:$P$36,MATCH(L1,[3]Текущая!$B$4:$B$36,0),9)/L6) -> 0 | M15: =(INDEX([3]Текущая!$C$4:$P$36,MATCH(M1,[3]Текущая!$B$4:$B$36,0),9)/M6) -> 0
A16: Зважування вагонів | B16: =(INDEX([3]Текущая!$C$4:$P$36,MATCH(B1,[3]Текущая!$B$4:$B$36,0),8)/B6) -> 0 | C16: =(INDEX([3]Текущая!$C$4:$P$36,MATCH(C1,[3]Текущая!$B$4:$B$36,0),8)/C6) -> 0 | D16: =(INDEX([3]Текущая!$C$4:$P$36,MATCH(D1,[3]Текущая!$B$4:$B$36,0),8)/D6) -> 0 | E16: =(INDEX([3]Текущая!$C$4:$P$36,MATCH(E1,[3]Текущая!$B$4:$B$36,0),8)/E6) -> 0 | F16: =(INDEX([3]Текущая!$C$4:$P$36,MATCH(F1,[3]Текущая!$B$4:$B$36,0),8)/F6) -> 0 | G16: =(INDEX([3]Текущая!$C$4:$P$36,MATCH(G1,[3]Текущая!$B$4:$B$36,0),8)/G6) -> 0 | H16: =(INDEX([3]Текущая!$C$4:$P$36,MATCH(H1,[3]Текущая!$B$4:$B$36,0),8)/H6) -> 0 | I16: =(INDEX([3]Текущая!$C$4:$P$36,MATCH(I1,[3]Текущая!$B$4:$B$36,0),8)/I6) -> 0 | J16: =(INDEX([3]Текущая!$C$4:$P$36,MATCH(J1,[3]Текущая!$B$4:$B$36,0),8)/J6) -> 0 | K16: =(INDEX([3]Текущая!$C$4:$P$36,MATCH(K1,[3]Текущая!$B$4:$B$36,0),8)/K6) -> 0 | L16: =(INDEX([3]Текущая!$C$4:$P$36,MATCH(L1,[3]Текущая!$B$4:$B$36,0),8)/L6) -> 0 | M16: =(INDEX([3]Текущая!$C$4:$P$36,MATCH(M1,[3]Текущая!$B$4:$B$36,0),8)/M6) -> 0
A17: Посвідчення про якість зерна СЗС | B17: =(INDEX([3]Текущая!$C$4:$P$36,MATCH(B1,[3]Текущая!$B$4:$B$36,0),12)/B6) -> 0 | C17: =(INDEX([3]Текущая!$C$4:$P$36,MATCH(C1,[3]Текущая!$B$4:$B$36,0),12)/C6) -> 0 | D17: =(INDEX([3]Текущая!$C$4:$P$36,MATCH(D1,[3]Текущая!$B$4:$B$36,0),12)/D6) -> 0 | E17: =(INDEX([3]Текущая!$C$4:$P$36,MATCH(E1,[3]Текущая!$B$4:$B$36,0),12)/E6) -> 0 | F17: =(INDEX([3]Текущая!$C$4:$P$36,MATCH(F1,[3]Текущая!$B$4:$B$36,0),12)/F6) -> 0 | G17: =(INDEX([3]Текущая!$C$4:$P$36,MATCH(G1,[3]Текущая!$B$4:$B$36,0),12)/G6) -> 0 | H17: =(INDEX([3]Текущая!$C$4:$P$36,MATCH(H1,[3]Текущая!$B$4:$B$36,0),12)/H6) -> 0 | I17: =(INDEX([3]Текущая!$C$4:$P$36,MATCH(I1,[3]Текущая!$B$4:$B$36,0),12)/I6) -> 0 | J17: =(INDEX([3]Текущая!$C$4:$P$36,MATCH(J1,[3]Текущая!$B$4:$B$36,0),12)/J6) -> 0 | K17: =(INDEX([3]Текущая!$C$4:$P$36,MATCH(K1,[3]Текущая!$B$4:$B$36,0),12)/K6) -> 0 | L17: =(INDEX([3]Текущая!$C$4:$P$36,MATCH(L1,[3]Текущая!$B$4:$B$36,0),12)/L6) -> 0 | M17: =(INDEX([3]Текущая!$C$4:$P$36,MATCH(M1,[3]Текущая!$B$4:$B$36,0),12)/M6) -> 0
A18: Протокол на показники безпеки і ГМО СЗС | B18: 0 | C18: 0 | D18: 0 | E18: 0 | F18: 0 | G18: 0 | H18: 0 | I18: 0 | J18: 0 | K18: 0 | L18: 0 | M18: 0
A19: Ставка ТЕО при перевезенні на DAP | B19: =INDEX([1]Текущая!$C$3:$AH$50,B2,B3) -> 435.66 | C19: =INDEX([1]Текущая!$C$3:$AH$50,C2,C3) -> 490.05 | D19: =INDEX([1]Текущая!$C$3:$AH$50,D2,D3) -> 490.48 | E19: =INDEX([1]Текущая!$C$3:$AH$50,E2,E3) -> 393.59 | F19: =INDEX([1]Текущая!$C$3:$AH$50,F2,F3) -> 422.66 | G19: =INDEX([1]Текущая!$C$3:$AH$50,G2,G3) -> 477.05 | H19: =INDEX([1]Текущая!$C$3:$AH$50,H2,H3) -> 477.48 | I19: =INDEX([1]Текущая!$C$3:$AH$50,I2,I3) -> 380.59 | J19: =INDEX([1]Текущая!$C$3:$AH$50,J2,J3) -> 770.6 | K19: =INDEX([1]Текущая!$C$3:$AH$50,K2,K3) -> 477.05 | L19: =INDEX([1]Текущая!$C$3:$AH$50,L2,L3) -> 477.48 | M19: =INDEX([1]Текущая!$C$3:$AH$50,M2,M3) -> 380.59
A20: Інші затрати (без ПДВ) | B20: 0 | C20: 0 | D20: 0 | E20: 0 | F20: 0 | G20: 0 | H20: 0 | I20: 0 | J20: 0 | K20: 0 | L20: 0 | M20: 0
A21: Вагові втрати (0,5%) при перевезенні на DAP | B21: =SUM(B7:B20)*0.5% -> 155.406981 | C21: =SUM(C7:C20)*0.5% -> 155.5631002 | D21: 155.7166118 | E21: 155.8733432 | F21: 156.0245753 | G21: 156.1839072 | H21: 156.3396835 | I21: 156.4842835 | J21: 156.6508073 | K21: 156.8048626 | L21: 156.9607069 | M21: 157.1156845
A22: Всього затрат по виконанню поставки ExW - DAP | B22: =SUM(B8:B21) -> 743.5333303 | C22: =SUM(C8:C21) -> 797.964195 | D22: 798.6983152 | E22: 702.603038 | F22: 731.8301228 | G22: 786.2673969 | H22: 787.0060352 | I22: 690.8865557 | J22: 1079.288427 | K22: 787.5062183 | L22: 788.2449924 | M22: 692.1462163
A23: Cобівартість на DAP | B23: =B22+B7 -> 31236.80318 | C23: =C22+C7 -> 31268.18315 | D23: 31299.03898 | E23: 31330.54199 | F23: 31360.93963 | G23: 31392.96535 | H23: 31424.27638 | I23: 31453.34098 | J23: 31486.81227 | K23: 31517.77737 | L23: 31549.10209 | M23: 31580.25258
A24: Вагові втрати на Терминалі (0,2%) | B24: =(B7+B8+B9+B11+B15+B16+B18+B19+B20)*[2]Main!$C$7 -> 0 | C24: =(C7+C8+C9+C11+C15+C16+C18+C19+C20)*[2]Main!$C$7 -> 0 | D24: =(D7+D8+D9+D11+D15+D16+D18+D19+D20)*[2]Main!$C$7 -> 0 | E24: =(E7+E8+E9+E11+E15+E16+E18+E19+E20)*[2]Main!$C$7 -> 0 | F24: =(F7+F8+F9+F11+F15+F16+F18+F19+F20)*[2]Main!$C$7 -> 0 | G24: =(G7+G8+G9+G11+G15+G16+G18+G19+G20)*[2]Main!$C$7 -> 0 | H24: =(H7+H8+H9+H11+H15+H16+H18+H19+H20)*[2]Main!$C$7 -> 0 | I24: =(I7+I8+I9+I11+I15+I16+I18+I19+I20)*[2]Main!$C$7 -> 0 | J24: =(J7+J8+J9+J11+J15+J16+J18+J19+J20)*[2]Main!$C$7 -> 0 | K24: =(K7+K8+K9+K11+K15+K16+K18+K19+K20)*[2]Main!$C$7 -> 0 | L24: =(L7+L8+L9+L11+L15+L16+L18+L19+L20)*[2]Main!$C$7 -> 0 | M24: =(M7+M8+M9+M11+M15+M16+M18+M19+M20)*[2]Main!$C$7 -> 0
A25: Оформлення ВМД | B25: =4500/[2]Main!$C$2 -> 9 | C25: =4500/[2]Main!$C$2 -> 9 | D25: =4500/[2]Main!$C$2 -> 9 | E25: =4500/[2]Main!$C$2 -> 9 | F25: =4500/[2]Main!$C$2 -> 9 | G25: =4500/[2]Main!$C$2 -> 9 | H25: =4500/[2]Main!$C$2 -> 9 | I25: =4500/[2]Main!$C$2 -> 9 | J25: =4500/[2]Main!$C$2 -> 9 | K25: =4500/[2]Main!$C$2 -> 9 | L25: =4500/[2]Main!$C$2 -> 9 | M25: =4500/[2]Main!$C$2 -> 9
A26: Комисія банку при купівлі-продажу валюти | B26: 0 | C26: 0 | D26: 0 | E26: 0 | F26: 0 | G26: 0 | H26: 0 | I26: 0 | J26: 0 | K26: 0 | L26: 0 | M26: 0
A27: Вартість фінансувания | B27: =B23*[2]Main!$C$4/365*[2]Main!$C$5 -> 0 | C27: =C23*[2]Main!$C$4/365*[2]Main!$C$5 -> 0 | D27: =D23*[2]Main!$C$4/365*[2]Main!$C$5 -> 0 | E27: =E23*[2]Main!$C$4/365*[2]Main!$C$5 -> 0 | F27: =F23*[2]Main!$C$4/365*[2]Main!$C$5 -> 0 | G27: =G23*[2]Main!$C$4/365*[2]Main!$C$5 -> 0 | H27: =H23*[2]Main!$C$4/365*[2]Main!$C$5 -> 0 | I27: =I23*[2]Main!$C$4/365*[2]Main!$C$5 -> 0 | J27: =J23*[2]Main!$C$4/365*[2]Main!$C$5 -> 0 | K27: =K23*[2]Main!$C$4/365*[2]Main!$C$5 -> 0 | L27: =L23*[2]Main!$C$4/365*[2]Main!$C$5 -> 0 | M27: =M23*[2]Main!$C$4/365*[2]Main!$C$5 -> 0
A28: Собівартість на DAP з митницею, втратами і фінансуванням | B28: =SUM(B23:B27) -> 31245.80318 | C28: =SUM(C23:C27) -> 31277.18315 | D28: 31308.03898 | E28: 31339.54199 | F28: 31369.93963 | G28: 31401.96535 | H28: 31433.27638 | I28: 31462.34098 | J28: 31495.81227 | K28: 31526.77737 | L28: 31558.10209 | M28: 31589.25258
A29: Ціна продажу на DAP | B29: =(INDEX([2]Main!$C$47:$J$50,MATCH(B5,[2]Main!$B$47:$B$50,0),MATCH(B4,[2]Main!$C$46:$J$46,0)))*[2]Main!$C$3 -> 27027 | C29: =(INDEX([2]Main!$C$47:$J$50,MATCH(C5,[2]Main!$B$47:$B$50,0),MATCH(C4,[2]Main!$C$46:$J$46,0)))*[2]Main!$C$3 -> 27054 | D29: =(INDEX([2]Main!$C$47:$J$50,MATCH(D5,[2]Main!$B$47:$B$50,0),MATCH(D4,[2]Main!$C$46:$J$46,0)))*[2]Main!$C$3 -> 27081 | E29: =(INDEX([2]Main!$C$47:$J$50,MATCH(E5,[2]Main!$B$47:$B$50,0),MATCH(E4,[2]Main!$C$46:$J$46,0)))*[2]Main!$C$3 -> 27108 | F29: =(INDEX([2]Main!$C$47:$J$50,MATCH(F5,[2]Main!$B$47:$B$50,0),MATCH(F4,[2]Main!$C$46:$J$46,0)))*[2]Main!$C$3 -> 27135 | G29: =(INDEX([2]Main!$C$47:$J$50,MATCH(G5,[2]Main!$B$47:$B$50,0),MATCH(G4,[2]Main!$C$46:$J$46,0)))*[2]Main!$C$3 -> 27162 | H29: =(INDEX([2]Main!$C$47:$J$50,MATCH(H5,[2]Main!$B$47:$B$50,0),MATCH(H4,[2]Main!$C$46:$J$46,0)))*[2]Main!$C$3 -> 27189 | I29: =(INDEX([2]Main!$C$47:$J$50,MATCH(I5,[2]Main!$B$47:$B$50,0),MATCH(I4,[2]Main!$C$46:$J$46,0)))*[2]Main!$C$3 -> 27216 | J29: =(INDEX([2]Main!$C$47:$J$50,MATCH(J5,[2]Main!$B$47:$B$50,0),MATCH(J4,[2]Main!$C$46:$J$46,0)))*[2]Main!$C$3 -> 27243 | K29: =(INDEX([2]Main!$C$47:$J$50,MATCH(K5,[2]Main!$B$47:$B$50,0),MATCH(K4,[2]Main!$C$46:$J$46,0)))*[2]Main!$C$3 -> 27270 | L29: =(INDEX([2]Main!$C$47:$J$50,MATCH(L5,[2]Main!$B$47:$B$50,0),MATCH(L4,[2]Main!$C$46:$J$46,0)))*[2]Main!$C$3 -> 27297 | M29: =(INDEX([2]Main!$C$47:$J$50,MATCH(M5,[2]Main!$B$47:$B$50,0),MATCH(M4,[2]Main!$C$46:$J$46,0)))*[2]Main!$C$3 -> 27324
A30: Операційний прибуток (без повернення ПДВ) | B30: =B29-B28 -> -4218.803181 | C30: =C29-C28 -> -4223.183145 | D30: -4227.038979 | E30: -4231.541993 | F30: -4234.93963 | G30: -4239.965347 | H30: -4244.276375 | I30: -4246.340985 | J30: -4252.812268 | K30: -4256.777375 | L30: -4261.102093 | M30: -4265.252577
A31: Повернення ПДВ (100%) | B31: =(B7+B8+B9+B11+B15+B16+B18+B19+B20+B25)/6 -> 5156.321642 | C31: =(C7+C8+C9+C11+C15+C16+C18+C19+C20+C25)/6 -> 5161.544825 | D31: 5166.636777 | E31: 5171.754826 | F31: 5176.794918 | G31: 5182.124658 | H31: 5187.291723 | I31: 5192.007405 | J31: 5197.853974 | K31: 5202.720193 | L31: 5207.889517 | M31: 5212.949394
A32: Повернення ПДВ (фактично) | B32: =B31*[2]Main!$C$6 -> 5156.321642 | C32: =C31*[2]Main!$C$6 -> 5161.544825 | D32: =D31*[2]Main!$C$6 -> 5166.636777 | E32: =E31*[2]Main!$C$6 -> 5171.754826 | F32: =F31*[2]Main!$C$6 -> 5176.794918 | G32: =G31*[2]Main!$C$6 -> 5182.124658 | H32: =H31*[2]Main!$C$6 -> 5187.291723 | I32: =I31*[2]Main!$C$6 -> 5192.007405 | J32: =J31*[2]Main!$C$6 -> 5197.853974 | K32: =K31*[2]Main!$C$6 -> 5202.720193 | L32: =L31*[2]Main!$C$6 -> 5207.889517 | M32: =M31*[2]Main!$C$6 -> 5212.949394
A33: Операційний прибуток (з поверненням ПДВ) | B33: =B30+B32 -> 937.518461 | C33: =C30+C32 -> 938.3616797 | D33: 939.5977981 | E33: 940.2128332 | F33: 941.8552882 | G33: 942.1593114 | H33: 943.0153481 | I33: 945.66642 | J33: 945.0417055 | K33: 945.9428178 | L33: 946.7874237 | M33: 947.6968161
A34: Рентабельність | B34: =B33/B28 -> 0.03000462032 | C34: =C33/C28 -> 0.03000147665 | D34: 0.03001139096 | E34: 0.03000084792 | F34: 0.03002413455 | G34: 0.03000319569 | H34: 0.03000054263 | I34: 0.03005709017 | J34: 0.03000531301 | K34: 0.0300044247 | L34: 0.03000140569 | M34: 0.03000060903
A35: Операційний прибуток (USD) | B35: =B33/[2]Main!$C$3 -> 34.72290596 | C35: =C33/[2]Main!$C$3 -> 34.75413629 | D35: =D33/[2]Main!$C$3 -> 34.79991845 | E35: =E33/[2]Main!$C$3 -> 34.82269752 | F35: =F33/[2]Main!$C$3 -> 34.88352919 | G35: =G33/[2]Main!$C$3 -> 34.89478931 | H35: =H33/[2]Main!$C$3 -> 34.92649437 | I35: =I33/[2]Main!$C$3 -> 35.02468222 | J35: =J33/[2]Main!$C$3 -> 35.00154465 | K35: =K33/[2]Main!$C$3 -> 35.03491918 | L35: =L33/[2]Main!$C$3 -> 35.06620088 | M35: =M33/[2]Main!$C$3 -> 35.09988208

Sheet Лист2

Sheet Лист3
